[Event "Titled Tuesday Blitz January 31 Early 2023"]
[White "Papasimakopoulos, Alexandros"]
[Black "Grandelius, Nils"]
[WhiteFideId "4244125"]
[BlackFideId "1710400"]
[WhiteElo "2401"]
[BlackElo "2664"]
[Result "0-1"]
[Round "08"]
[TimeControl "180+2"]
[Date "2023.01.31"]
[WhiteClock "0:00:49"]
[BlackClock "0:00:46"]

1. d4 {[%clk 0:03:00]}  Nf6 {[%clk 0:02:58]} 2. c4 {[%clk 0:03:01]}  a6 {[%clk 0:02:57]} 3. g3 {[%clk 0:02:56]}  c5 {[%clk 0:02:40]} 4. Nf3 {[%clk 0:02:56]}  cxd4 {[%clk 0:02:39]} 5. Nxd4 {[%clk 0:02:57]}  d5 {[%clk 0:02:40]} 6. Bg2 {[%clk 0:02:41]}  dxc4 {[%clk 0:02:39]} 7. Qa4+ {[%clk 0:02:40]}  Qd7 {[%clk 0:02:19]} 8. Qxc4 {[%clk 0:02:38]}  b5 {[%clk 0:02:14]} 9. Qb3 {[%clk 0:02:30]}  Bb7 {[%clk 0:02:15]} 10. Nf3 {[%clk 0:02:30]}  e6 {[%clk 0:02:06]} 11. O-O {[%clk 0:02:29]}  Bd5 {[%clk 0:02:01]} 12. Qc2 {[%clk 0:02:25]}  Qb7 {[%clk 0:01:59]} 13. Nc3 {[%clk 0:02:24]}  Bc6 {[%clk 0:01:59]} 14. Bf4 {[%clk 0:02:16]}  Nbd7 {[%clk 0:01:56]} 15. Rac1 {[%clk 0:02:16]}  Be7 {[%clk 0:01:49]} 16. Rfd1 {[%clk 0:01:56]}  O-O {[%clk 0:01:44]} 17. Ne1 {[%clk 0:01:55]}  Bxg2 {[%clk 0:01:42]} 18. Nxg2 {[%clk 0:01:56]}  Rac8 {[%clk 0:01:41]} 19. Qd3 {[%clk 0:01:48]}  Nb6 {[%clk 0:01:35]} 20. Bg5 {[%clk 0:01:44]}  h6 {[%clk 0:01:30]} 21. Bxf6 {[%clk 0:01:41]}  Bxf6 {[%clk 0:01:30]} 22. Ne4 {[%clk 0:01:41]}  Be7 {[%clk 0:01:20]} 23. Nf4 {[%clk 0:01:36]}  Na4 {[%clk 0:01:11]} 24. b3 {[%clk 0:01:25]}  Nb2 {[%clk 0:01:05]} 25. Rxc8 {[%clk 0:01:09]}  Nxd3 {[%clk 0:00:53]} 26. Rxf8+ {[%clk 0:01:08]}  Bxf8 {[%clk 0:00:54]} 27. exd3 {[%clk 0:01:05]}  Qc6 {[%clk 0:00:55]} 28. Ne2 {[%clk 0:00:56]}  Qc2 {[%clk 0:00:48]} 29. Rd2 {[%clk 0:00:55]}  Qb1+ {[%clk 0:00:49]} 30. Kg2 {[%clk 0:00:52]}  Bb4 {[%clk 0:00:49]} 31. N4c3 {[%clk 0:00:49]}  Bxc3 {[%clk 0:00:46]} 32. Nxc3 {[%clk 0:00:49]}  Qc1 {[%clk 0:00:46]} 0-1


[Site "https://www.chess.com"]

[Event "Titled Tuesday Blitz January 31 Early 2023"]
[White "Baskakov, Egor"]
[Black "Martinez Ramirez, Lennis"]
[WhiteFideId "24197866"]
[BlackFideId "3509079"]
[WhiteElo "2215"]
[BlackElo "2426"]
[Result "1-0"]
[Round "08"]
[TimeControl "180+2"]
[Date "2023.01.31"]
[WhiteClock "0:00:08"]
[BlackClock "0:00:10"]

1. e4 {[%clk 0:03:00]}  c5 {[%clk 0:02:59]} 2. Nf3 {[%clk 0:03:00]}  d6 {[%clk 0:03:00]} 3. d4 {[%clk 0:03:00]}  cxd4 {[%clk 0:03:01]} 4. Nxd4 {[%clk 0:03:00]}  Nf6 {[%clk 0:03:01]} 5. Nc3 {[%clk 0:03:01]}  a6 {[%clk 0:03:02]} 6. a4 {[%clk 0:03:01]}  g6 {[%clk 0:03:01]} 7. g3 {[%clk 0:03:01]}  Bg7 {[%clk 0:03:01]} 8. Bg2 {[%clk 0:03:02]}  O-O {[%clk 0:03:00]} 9. h3 {[%clk 0:03:02]}  e5 {[%clk 0:03:00]} 10. Nde2 {[%clk 0:03:03]}  Nc6 {[%clk 0:02:59]} 11. Nd5 {[%clk 0:03:03]}  Nxd5 {[%clk 0:02:59]} 12. exd5 {[%clk 0:03:04]}  Ne7 {[%clk 0:02:59]} 13. O-O {[%clk 0:03:02]}  b6 {[%clk 0:02:56]} 14. c4 {[%clk 0:03:00]}  Bd7 {[%clk 0:02:25]} 15. Nc3 {[%clk 0:02:56]}  Nf5 {[%clk 0:02:23]} 16. b3 {[%clk 0:02:52]}  Nd4 {[%clk 0:02:15]} 17. Be3 {[%clk 0:02:46]}  b5 {[%clk 0:02:10]} 18. axb5 {[%clk 0:02:45]}  axb5 {[%clk 0:02:09]} 19. Rxa8 {[%clk 0:02:46]}  Qxa8 {[%clk 0:02:09]} 20. Ne4 {[%clk 0:02:37]}  bxc4 {[%clk 0:02:08]} 21. bxc4 {[%clk 0:02:38]}  Qa6 {[%clk 0:02:04]} 22. c5 {[%clk 0:02:38]}  Bb5 {[%clk 0:01:47]} 23. Nxd6 {[%clk 0:02:19]}  Bxf1 {[%clk 0:01:40]} 24. Qxf1 {[%clk 0:02:19]}  Qa3 {[%clk 0:01:36]} 25. Qc4 {[%clk 0:02:14]}  Rb8 {[%clk 0:01:31]} 26. Bf1 {[%clk 0:01:48]}  Rb4 {[%clk 0:01:23]} 27. Qa6 {[%clk 0:01:39]}  Qxa6 {[%clk 0:01:18]} 28. Bxa6 {[%clk 0:01:40]}  Bf8 {[%clk 0:01:16]} 29. Ne4 {[%clk 0:01:19]}  Nf3+ {[%clk 0:01:13]} 30. Kg2 {[%clk 0:01:16]}  Ne1+ {[%clk 0:01:13]} 31. Kf1 {[%clk 0:01:16]}  Rxe4 {[%clk 0:01:14]} 32. c6 {[%clk 0:00:59]}  Bd6 {[%clk 0:00:55]} 33. Bc5 {[%clk 0:00:57]}  Nf3 {[%clk 0:00:20]} 34. Bxd6 {[%clk 0:00:53]}  Re1+ {[%clk 0:00:20]} 35. Kg2 {[%clk 0:00:53]}  e4 {[%clk 0:00:20]} 36. Bf1 {[%clk 0:00:51]}  Rc1 {[%clk 0:00:20]} 37. c7 {[%clk 0:00:47]}  f5 {[%clk 0:00:20]} 38. Bf4 {[%clk 0:00:46]}  Ne1+ {[%clk 0:00:17]} 39. Kg1 {[%clk 0:00:42]}  Nf3+ {[%clk 0:00:17]} 40. Kg2 {[%clk 0:00:43]}  Ne1+ {[%clk 0:00:17]} 41. Kh1 {[%clk 0:00:43]}  e3 {[%clk 0:00:13]} 42. d6 {[%clk 0:00:31]}  Nd3 {[%clk 0:00:05]} 43. c8=Q+ {[%clk 0:00:15]}  Rxc8 {[%clk 0:00:03]} 44. Bxd3 {[%clk 0:00:15]}  exf2 {[%clk 0:00:01]} 45. Kg2 {[%clk 0:00:16]}  Rd8 {[%clk 0:00:02]} 46. Bb5 {[%clk 0:00:14]}  Kf7 {[%clk 0:00:01]} 47. d7 {[%clk 0:00:14]}  Ke6 {[%clk 0:00:02]} 48. Kxf2 {[%clk 0:00:12]}  Rxd7 {[%clk 0:00:03]} 49. Bxd7+ {[%clk 0:00:12]}  Kxd7 {[%clk 0:00:03]} 50. Ke3 {[%clk 0:00:12]}  Ke6 {[%clk 0:00:04]} 51. Bg5 {[%clk 0:00:12]}  Kf7 {[%clk 0:00:04]} 52. Kf4 {[%clk 0:00:12]}  Kg7 {[%clk 0:00:05]} 53. Ke5 {[%clk 0:00:12]}  h6 {[%clk 0:00:06]} 54. Bf6+ {[%clk 0:00:12]}  Kf7 {[%clk 0:00:07]} 55. h4 {[%clk 0:00:12]}  g5 {[%clk 0:00:07]} 56. hxg5 {[%clk 0:00:10]}  hxg5 {[%clk 0:00:07]} 57. Bxg5 {[%clk 0:00:11]}  Kg6 {[%clk 0:00:07]} 58. Bf4 {[%clk 0:00:11]}  Kh5 {[%clk 0:00:07]} 59. Ke6 {[%clk 0:00:11]}  Kg6 {[%clk 0:00:08]} 60. Ke7 {[%clk 0:00:10]}  Kh5 {[%clk 0:00:09]} 61. Bc7 {[%clk 0:00:10]}  Kg5 {[%clk 0:00:09]} 62. Kf7 {[%clk 0:00:10]}  f4 {[%clk 0:00:09]} 63. gxf4+ {[%clk 0:00:07]}  Kf5 {[%clk 0:00:10]} 64. Ke7 {[%clk 0:00:08]}  Ke4 {[%clk 0:00:10]} 65. Ke6 {[%clk 0:00:08]} 1-0


[Site "https://www.chess.com"]

[Event "Titled Tuesday Blitz January 31 Early 2023"]
[White "Agasarov, Benik"]
[Black "Yuan, Qingyu"]
[WhiteFideId "13314823"]
[BlackFideId "8609772"]
[WhiteElo "2235"]
[BlackElo "2373"]
[Result "1-0"]
[Round "08"]
[TimeControl "180+2"]
[Date "2023.01.31"]
[WhiteClock "0:00:51"]
[BlackClock "0:00:01"]

1. d4 {[%clk 0:03:00]}  d5 {[%clk 0:03:00]} 2. c4 {[%clk 0:03:00]}  e6 {[%clk 0:03:00]} 3. Nc3 {[%clk 0:02:59]}  Be7 {[%clk 0:03:00]} 4. Nf3 {[%clk 0:02:59]}  Nf6 {[%clk 0:03:01]} 5. Bf4 {[%clk 0:02:59]}  O-O {[%clk 0:03:01]} 6. e3 {[%clk 0:02:59]}  Nbd7 {[%clk 0:03:01]} 7. c5 {[%clk 0:02:58]}  c6 {[%clk 0:03:02]} 8. h3 {[%clk 0:02:53]}  b6 {[%clk 0:03:00]} 9. b4 {[%clk 0:02:53]}  a5 {[%clk 0:03:01]} 10. a3 {[%clk 0:02:41]}  h6 {[%clk 0:02:54]} 11. Bd3 {[%clk 0:02:29]}  Ba6 {[%clk 0:02:52]} 12. Bxa6 {[%clk 0:02:27]}  Rxa6 {[%clk 0:02:53]} 13. b5 {[%clk 0:02:27]}  cxb5 {[%clk 0:02:49]} 14. c6 {[%clk 0:02:28]}  Qc8 {[%clk 0:02:49]} 15. c7 {[%clk 0:02:28]}  b4 {[%clk 0:02:38]} 16. Nb5 {[%clk 0:02:27]}  a4 {[%clk 0:02:36]} 17. Rc1 {[%clk 0:01:47]}  Ne4 {[%clk 0:02:14]} 18. Nd2 {[%clk 0:01:47]}  Ndf6 {[%clk 0:01:49]} 19. f3 {[%clk 0:01:24]}  Nxd2 {[%clk 0:00:58]} 20. Qxd2 {[%clk 0:01:24]}  Qd7 {[%clk 0:00:56]} 21. Nd6 {[%clk 0:01:14]}  Bxd6 {[%clk 0:00:41]} 22. Bxd6 {[%clk 0:01:15]}  Rc8 {[%clk 0:00:40]} 23. Qxb4 {[%clk 0:01:14]}  Ne8 {[%clk 0:00:37]} 24. Bg3 {[%clk 0:01:10]}  Nxc7 {[%clk 0:00:28]} 25. O-O {[%clk 0:01:09]}  Ne8 {[%clk 0:00:21]} 26. Rc3 {[%clk 0:00:54]}  Rxc3 {[%clk 0:00:14]} 27. Qxc3 {[%clk 0:00:55]}  Ra8 {[%clk 0:00:07]} 28. Rc1 {[%clk 0:00:55]}  Nf6 {[%clk 0:00:04]} 29. Qb4 {[%clk 0:00:55]}  b5 {[%clk 0:00:02]} 30. Rc5 {[%clk 0:00:54]}  Qd8 {[%clk 0:00:01]} 31. Qxb5 {[%clk 0:00:53]}  Rc8 {[%clk 0:00:01]} 32. Qxa4 {[%clk 0:00:51]}  Rxc5 {[%clk 0:00:01]} 33. dxc5 {[%clk 0:00:52]}  Qc8 {[%clk 0:00:01]} 34. c6 {[%clk 0:00:52]}  Ne8 {[%clk 0:00:02]} 35. Qb5 {[%clk 0:00:52]}  Nc7 {[%clk 0:00:02]} 36. Qb7 {[%clk 0:00:53]}  Qf8 {[%clk 0:00:01]} 37. Qxc7 {[%clk 0:00:51]}  Qxa3 {[%clk 0:00:01]} 38. Qb8+ {[%clk 0:00:51]}  Kh7 {[%clk 0:00:01]} 39. c7 {[%clk 0:00:51]}  Qc1+ {[%clk 0:00:01]} 40. Kh2 {[%clk 0:00:51]}  d4 {[%clk 0:00:02]} 41. exd4 {[%clk 0:00:52]}  Qe3 {[%clk 0:00:01]} 42. c8=Q {[%clk 0:00:51]} 1-0


[Site "https://www.chess.com"]

[Event "Titled Tuesday Blitz January 31 Early 2023"]
[White "Kvaloy, Aksel Bu"]
[Black "Urazayev, Arystanbek"]
[WhiteFideId "1528815"]
[BlackFideId "13709810"]
[WhiteElo "2321"]
[BlackElo "2460"]
[Result "0-1"]
[Round "08"]
[TimeControl "180+2"]
[Date "2023.01.31"]
[WhiteClock "0:00:26"]
[BlackClock "0:01:28"]

1. d4 {[%clk 0:03:00]}  Nf6 {[%clk 0:02:59]} 2. c4 {[%clk 0:03:00]}  e6 {[%clk 0:02:59]} 3. g3 {[%clk 0:03:01]}  d5 {[%clk 0:02:59]} 4. Nf3 {[%clk 0:03:01]}  Be7 {[%clk 0:02:59]} 5. Bg2 {[%clk 0:03:01]}  O-O {[%clk 0:03:00]} 6. O-O {[%clk 0:03:02]}  c6 {[%clk 0:03:00]} 7. Qc2 {[%clk 0:03:02]}  b6 {[%clk 0:02:59]} 8. Nbd2 {[%clk 0:03:02]}  c5 {[%clk 0:03:00]} 9. cxd5 {[%clk 0:02:52]}  exd5 {[%clk 0:02:59]} 10. e4 {[%clk 0:02:52]}  Nc6 {[%clk 0:02:50]} 11. dxc5 {[%clk 0:02:49]}  bxc5 {[%clk 0:02:50]} 12. exd5 {[%clk 0:02:46]}  Nxd5 {[%clk 0:02:50]} 13. a3 {[%clk 0:02:46]}  Be6 {[%clk 0:02:42]} 14. Rd1 {[%clk 0:02:41]}  Nd4 {[%clk 0:02:42]} 15. Nxd4 {[%clk 0:02:23]}  cxd4 {[%clk 0:02:43]} 16. Nf3 {[%clk 0:02:23]}  Rc8 {[%clk 0:02:43]} 17. Qd3 {[%clk 0:02:23]}  Bf6 {[%clk 0:02:38]} 18. Nxd4 {[%clk 0:02:20]}  Bg4 {[%clk 0:02:31]} 19. Nf3 {[%clk 0:02:07]}  Nb6 {[%clk 0:02:30]} 20. Qe2 {[%clk 0:01:31]}  Qe8 {[%clk 0:02:27]} 21. Be3 {[%clk 0:01:24]}  Nc4 {[%clk 0:02:25]} 22. Rac1 {[%clk 0:01:21]}  Nxe3 {[%clk 0:02:24]} 23. Rxc8 {[%clk 0:01:20]}  Qxc8 {[%clk 0:02:19]} 24. Qxe3 {[%clk 0:01:15]}  Bxb2 {[%clk 0:02:17]} 25. Qxa7 {[%clk 0:01:15]}  Qc3 {[%clk 0:02:08]} 26. Qb7 {[%clk 0:00:22]}  Bxa3 {[%clk 0:02:02]} 27. Qe4 {[%clk 0:00:21]}  Bh5 {[%clk 0:01:55]} 28. h3 {[%clk 0:00:20]}  Bc5 {[%clk 0:01:49]} 29. Qd3 {[%clk 0:00:20]}  Qf6 {[%clk 0:01:44]} 30. Rc1 {[%clk 0:00:16]}  Bb6 {[%clk 0:01:40]} 31. Qe2 {[%clk 0:00:16]}  h6 {[%clk 0:01:38]} 32. Rb1 {[%clk 0:00:15]}  Rb8 {[%clk 0:01:30]} 33. Qe5 {[%clk 0:00:14]}  Qxe5 {[%clk 0:01:25]} 34. Nxe5 {[%clk 0:00:14]}  Bxf2+ {[%clk 0:01:26]} 35. Kxf2 {[%clk 0:00:12]}  Rxb1 {[%clk 0:01:27]} 36. g4 {[%clk 0:00:11]}  Bg6 {[%clk 0:01:27]} 37. Nxg6 {[%clk 0:00:09]}  fxg6 {[%clk 0:01:27]} 38. h4 {[%clk 0:00:08]}  Kf7 {[%clk 0:01:25]} 39. Kg3 {[%clk 0:00:07]}  Kf6 {[%clk 0:01:24]} 40. Be4 {[%clk 0:00:06]}  Rb4 {[%clk 0:01:24]} 41. Kf3 {[%clk 0:00:05]}  g5 {[%clk 0:01:22]} 42. h5 {[%clk 0:00:05]}  Ke5 {[%clk 0:01:22]} 43. Bc6 {[%clk 0:00:03]}  Rb3+ {[%clk 0:01:22]} 44. Kg2 {[%clk 0:00:03]}  Kf4 {[%clk 0:01:23]} 45. Bd7 {[%clk 0:00:04]}  Rg3+ {[%clk 0:01:24]} 46. Kh2 {[%clk 0:00:04]}  Rxg4 {[%clk 0:01:25]} 47. Bxg4 {[%clk 0:00:05]}  Kxg4 {[%clk 0:01:26]} 48. Kg2 {[%clk 0:00:05]}  Kxh5 {[%clk 0:01:26]} 49. Kh3 {[%clk 0:00:06]}  Kg6 {[%clk 0:01:27]} 50. Kg3 {[%clk 0:00:07]}  h5 {[%clk 0:01:28]} 51. Kf2 {[%clk 0:00:08]}  Kh6 {[%clk 0:01:29]} 52. Ke3 {[%clk 0:00:09]}  g6 {[%clk 0:01:30]} 53. Ke4 {[%clk 0:00:10]}  h4 {[%clk 0:01:31]} 54. Ke3 {[%clk 0:00:11]}  Kh5 {[%clk 0:01:32]} 55. Kf2 {[%clk 0:00:12]}  g4 {[%clk 0:01:32]} 56. Kg2 {[%clk 0:00:13]}  Kg5 {[%clk 0:01:33]} 57. Kh2 {[%clk 0:00:14]}  Kf5 {[%clk 0:01:34]} 58. Kg1 {[%clk 0:00:14]}  g5 {[%clk 0:01:35]} 59. Kh2 {[%clk 0:00:14]}  Kf4 {[%clk 0:01:36]} 60. Kg2 {[%clk 0:00:15]}  h3+ {[%clk 0:01:36]} 61. Kh1 {[%clk 0:00:16]}  g3 {[%clk 0:01:36]} 62. Kg1 {[%clk 0:00:16]}  Kf3 {[%clk 0:01:36]} 63. Kh1 {[%clk 0:00:17]}  Ke3 {[%clk 0:01:26]} 64. Kg1 {[%clk 0:00:17]}  g2 {[%clk 0:01:22]} 65. Kh2 {[%clk 0:00:17]}  Kf2 {[%clk 0:01:22]} 66. Kxh3 {[%clk 0:00:18]}  g4+ {[%clk 0:01:22]} 67. Kxg4 {[%clk 0:00:16]}  g1=Q+ {[%clk 0:01:22]} 68. Kf4 {[%clk 0:00:17]}  Qg3+ {[%clk 0:01:22]} 69. Ke4 {[%clk 0:00:18]}  Qf3+ {[%clk 0:01:23]} 70. Kd4 {[%clk 0:00:18]}  Qe3+ {[%clk 0:01:23]} 71. Kd5 {[%clk 0:00:18]}  Qf4 {[%clk 0:01:23]} 72. Kc6 {[%clk 0:00:19]}  Qe5 {[%clk 0:01:23]} 73. Kb6 {[%clk 0:00:19]}  Qd5 {[%clk 0:01:23]} 74. Kc7 {[%clk 0:00:20]}  Qe6 {[%clk 0:01:24]} 75. Kb7 {[%clk 0:00:21]}  Qd6 {[%clk 0:01:24]} 76. Kc8 {[%clk 0:00:22]}  Qe7 {[%clk 0:01:24]} 77. Kb8 {[%clk 0:00:23]}  Ke3 {[%clk 0:01:25]} 78. Ka8 {[%clk 0:00:24]}  Kd4 {[%clk 0:01:26]} 79. Kb8 {[%clk 0:00:25]}  Kc5 {[%clk 0:01:27]} 80. Ka8 {[%clk 0:00:25]}  Kb6 {[%clk 0:01:28]} 81. Kb8 {[%clk 0:00:26]}  Qe8# {[%clk 0:01:28]} 0-1


[Site "https://www.chess.com"]

[Event "Titled Tuesday Blitz January 31 Early 2023"]
[White "Kilic, Eray"]
[Black "Lymar, Vladislav"]
[WhiteFideId "44517173"]
[BlackFideId "14162180"]
[WhiteElo "2414"]
[BlackElo "2119"]
[Result "1-0"]
[Round "08"]
[TimeControl "180+2"]
[Date "2023.01.31"]
[WhiteClock "0:00:10"]
[BlackClock "0:01:10"]

1. e4 {[%clk 0:03:00]}  c5 {[%clk 0:03:00]} 2. Nf3 {[%clk 0:03:00]}  Nc6 {[%clk 0:03:00]} 3. Bb5 {[%clk 0:02:59]}  e6 {[%clk 0:03:00]} 4. O-O {[%clk 0:02:59]}  Nge7 {[%clk 0:02:59]} 5. Re1 {[%clk 0:02:59]}  a6 {[%clk 0:02:57]} 6. Bf1 {[%clk 0:02:58]}  b6 {[%clk 0:02:57]} 7. c3 {[%clk 0:02:56]}  Bb7 {[%clk 0:02:49]} 8. d4 {[%clk 0:02:51]}  d5 {[%clk 0:02:49]} 9. e5 {[%clk 0:02:42]}  Nf5 {[%clk 0:02:45]} 10. Bf4 {[%clk 0:02:40]}  Be7 {[%clk 0:02:44]} 11. Na3 {[%clk 0:02:39]}  O-O {[%clk 0:02:40]} 12. Nc2 {[%clk 0:02:38]}  Qd7 {[%clk 0:02:36]} 13. Bd3 {[%clk 0:02:26]}  cxd4 {[%clk 0:02:35]} 14. Ncxd4 {[%clk 0:02:21]}  Ncxd4 {[%clk 0:02:31]} 15. cxd4 {[%clk 0:02:21]}  a5 {[%clk 0:02:27]} 16. g4 {[%clk 0:02:19]}  Nh4 {[%clk 0:02:22]} 17. Nxh4 {[%clk 0:02:18]}  Bxh4 {[%clk 0:02:23]} 18. g5 {[%clk 0:02:18]}  f6 {[%clk 0:02:09]} 19. Qh5 {[%clk 0:02:08]}  Bxf2+ {[%clk 0:01:47]} 20. Kxf2 {[%clk 0:02:05]}  g6 {[%clk 0:01:48]} 21. Qh4 {[%clk 0:01:48]}  fxe5 {[%clk 0:01:46]} 22. Rxe5 {[%clk 0:01:48]}  Qa4 {[%clk 0:01:43]} 23. Ke3 {[%clk 0:01:42]}  Ba6 {[%clk 0:01:32]} 24. Bxa6 {[%clk 0:01:10]}  Rxa6 {[%clk 0:01:33]} 25. Rc1 {[%clk 0:01:01]}  Ra7 {[%clk 0:01:31]} 26. Rxe6 {[%clk 0:00:37]}  Qxa2 {[%clk 0:01:29]} 27. Be5 {[%clk 0:00:17]}  Qxb2 {[%clk 0:01:27]} 28. Rxg6+ {[%clk 0:00:16]}  hxg6 {[%clk 0:01:20]} 29. Qh8+ {[%clk 0:00:17]}  Kf7 {[%clk 0:01:19]} 30. Qg7+ {[%clk 0:00:16]}  Ke6 {[%clk 0:01:16]} 31. Rc6+ {[%clk 0:00:08]}  Kf5 {[%clk 0:01:16]} 32. Qxg6+ {[%clk 0:00:09]}  Kg4 {[%clk 0:01:16]} 33. h3+ {[%clk 0:00:09]}  Kxh3 {[%clk 0:01:13]} 34. Qh5+ {[%clk 0:00:09]}  Kg2 {[%clk 0:01:10]} 35. Qh2+ {[%clk 0:00:10]}  Kf1 {[%clk 0:01:10]} 36. Qh1# {[%clk 0:00:10]} 1-0


[Site "https://www.chess.com"]

[Event "Titled Tuesday Blitz January 31 Early 2023"]
[White "Halkias, Stelios"]
[Black "Md, Imran"]
[WhiteFideId "4201809"]
[BlackFideId "25748580"]
[WhiteElo "2511"]
[BlackElo "2284"]
[Result "0-1"]
[Round "08"]
[TimeControl "180+2"]
[Date "2023.01.31"]
[WhiteClock "0:00:01"]
[BlackClock "0:00:31"]

1. d4 {[%clk 0:03:00]}  Nf6 {[%clk 0:02:55]} 2. Nf3 {[%clk 0:03:01]}  e6 {[%clk 0:02:52]} 3. e3 {[%clk 0:03:00]}  d5 {[%clk 0:02:53]} 4. Bd3 {[%clk 0:03:00]}  c5 {[%clk 0:02:53]} 5. b3 {[%clk 0:02:59]}  Nc6 {[%clk 0:02:53]} 6. O-O {[%clk 0:02:59]}  cxd4 {[%clk 0:02:52]} 7. exd4 {[%clk 0:02:59]}  Be7 {[%clk 0:02:53]} 8. Bb2 {[%clk 0:02:59]}  O-O {[%clk 0:02:54]} 9. Nbd2 {[%clk 0:02:59]}  b6 {[%clk 0:02:54]} 10. a3 {[%clk 0:02:53]}  Bb7 {[%clk 0:02:54]} 11. Qe2 {[%clk 0:02:47]}  Rc8 {[%clk 0:02:52]} 12. Ne5 {[%clk 0:02:45]}  Nxe5 {[%clk 0:02:06]} 13. dxe5 {[%clk 0:02:44]}  Nd7 {[%clk 0:02:06]} 14. b4 {[%clk 0:02:39]}  a5 {[%clk 0:02:03]} 15. f4 {[%clk 0:02:34]}  axb4 {[%clk 0:02:01]} 16. axb4 {[%clk 0:02:34]}  Bxb4 {[%clk 0:02:00]} 17. Nf3 {[%clk 0:02:21]}  Be7 {[%clk 0:02:00]} 18. f5 {[%clk 0:02:21]}  exf5 {[%clk 0:01:58]} 19. Bxf5 {[%clk 0:02:21]}  Nc5 {[%clk 0:01:56]} 20. Nd4 {[%clk 0:02:02]}  Ra8 {[%clk 0:01:50]} 21. e6 {[%clk 0:01:45]}  g6 {[%clk 0:01:49]} 22. exf7+ {[%clk 0:00:54]}  Rxf7 {[%clk 0:01:49]} 23. Ne6 {[%clk 0:00:53]}  Qd6 {[%clk 0:01:39]} 24. Rxa8+ {[%clk 0:00:52]}  Bxa8 {[%clk 0:01:37]} 25. Be5 {[%clk 0:00:53]}  Qc6 {[%clk 0:01:31]} 26. Nd4 {[%clk 0:00:52]}  Qe8 {[%clk 0:01:27]} 27. Qg4 {[%clk 0:00:52]}  Bf8 {[%clk 0:01:04]} 28. Re1 {[%clk 0:00:30]}  Re7 {[%clk 0:00:53]} 29. Nf3 {[%clk 0:00:17]}  Bg7 {[%clk 0:00:50]} 30. Bxg6 {[%clk 0:00:05]}  hxg6 {[%clk 0:00:46]} 31. Bg3 {[%clk 0:00:02]}  Rxe1+ {[%clk 0:00:38]} 32. Bxe1 {[%clk 0:00:02]}  Bc6 {[%clk 0:00:32]} 33. Bg3 {[%clk 0:00:02]}  Ne4 {[%clk 0:00:32]} 34. Bf4 {[%clk 0:00:01]}  Bd7 {[%clk 0:00:32]} 35. Qh4 {[%clk 0:00:01]}  d4 {[%clk 0:00:31]} 0-1


[Site "https://www.chess.com"]

[Event "Titled Tuesday Blitz January 31 Early 2023"]
[White "Avila Pavas, Santiago"]
[Black "Garv Gaur"]
[WhiteFideId "4437128"]
[BlackFideId "45030839"]
[WhiteElo "2522"]
[BlackElo "2006"]
[Result "1-0"]
[Round "08"]
[TimeControl "180+2"]
[Date "2023.01.31"]
[WhiteClock "0:01:41"]
[BlackClock "0:00:41"]

1. d4 {[%clk 0:02:59]}  Nf6 {[%clk 0:02:59]} 2. Nf3 {[%clk 0:03:00]}  d5 {[%clk 0:02:59]} 3. Bf4 {[%clk 0:03:00]}  c5 {[%clk 0:02:59]} 4. e3 {[%clk 0:03:01]}  Nc6 {[%clk 0:02:59]} 5. c3 {[%clk 0:03:01]}  e6 {[%clk 0:02:58]} 6. Nbd2 {[%clk 0:03:01]}  Bd6 {[%clk 0:02:58]} 7. Bg3 {[%clk 0:03:02]}  O-O {[%clk 0:02:57]} 8. Bd3 {[%clk 0:03:02]}  Qe7 {[%clk 0:02:57]} 9. Ne5 {[%clk 0:03:02]}  Nd7 {[%clk 0:02:54]} 10. f4 {[%clk 0:03:01]}  f5 {[%clk 0:02:47]} 11. Qf3 {[%clk 0:02:57]}  Nf6 {[%clk 0:02:47]} 12. Bh4 {[%clk 0:02:58]}  Qe8 {[%clk 0:02:45]} 13. O-O-O {[%clk 0:02:54]}  Ne4 {[%clk 0:02:42]} 14. g4 {[%clk 0:02:54]}  cxd4 {[%clk 0:02:40]} 15. exd4 {[%clk 0:02:54]}  Bd7 {[%clk 0:02:35]} 16. gxf5 {[%clk 0:02:52]}  exf5 {[%clk 0:02:35]} 17. Rhg1 {[%clk 0:02:47]}  Rc8 {[%clk 0:02:33]} 18. Kb1 {[%clk 0:02:47]}  Kh8 {[%clk 0:02:07]} 19. Qh3 {[%clk 0:02:40]}  Qh5 {[%clk 0:01:57]} 20. Nxd7 {[%clk 0:02:37]}  Rf7 {[%clk 0:01:48]} 21. Ne5 {[%clk 0:02:26]}  Bxe5 {[%clk 0:01:48]} 22. Bxe4 {[%clk 0:02:19]}  Bxf4 {[%clk 0:01:36]} 23. Bxd5 {[%clk 0:02:15]}  Rfc7 {[%clk 0:01:37]} 24. Nf3 {[%clk 0:01:56]}  Ne7 {[%clk 0:01:29]} 25. Be6 {[%clk 0:01:56]}  Rf8 {[%clk 0:01:29]} 26. Qg2 {[%clk 0:01:41]}  Ng6 {[%clk 0:01:26]} 27. Bg5 {[%clk 0:01:42]}  Bxg5 {[%clk 0:01:20]} 28. Nxg5 {[%clk 0:01:43]}  f4 {[%clk 0:00:55]} 29. Qd5 {[%clk 0:01:43]}  Qxh2 {[%clk 0:00:41]} 30. Rh1 {[%clk 0:01:41]} 1-0


[Site "https://www.chess.com"]

[Event "Titled Tuesday Blitz January 31 Early 2023"]
[White "Lucassen, Mickey"]
[Black "Corrales Jimenez, Fidel"]
[WhiteFideId "12919110"]
[BlackFideId "3506690"]
[WhiteElo "2023"]
[BlackElo "2489"]
[Result "0-1"]
[Round "08"]
[TimeControl "180+2"]
[Date "2023.01.31"]
[WhiteClock "0:00:15"]
[BlackClock "0:01:42"]

1. e4 {[%clk 0:03:00]}  c6 {[%clk 0:02:56]} 2. d4 {[%clk 0:03:00]}  d5 {[%clk 0:02:56]} 3. e5 {[%clk 0:03:01]}  c5 {[%clk 0:02:56]} 4. dxc5 {[%clk 0:03:00]}  Nc6 {[%clk 0:02:57]} 5. Nf3 {[%clk 0:03:00]}  Bg4 {[%clk 0:02:57]} 6. Bb5 {[%clk 0:02:55]}  e6 {[%clk 0:02:56]} 7. Be3 {[%clk 0:02:49]}  Ne7 {[%clk 0:02:54]} 8. b4 {[%clk 0:02:45]}  Nf5 {[%clk 0:02:53]} 9. Bf4 {[%clk 0:02:19]}  Be7 {[%clk 0:02:50]} 10. h3 {[%clk 0:02:16]}  Bxf3 {[%clk 0:02:49]} 11. Qxf3 {[%clk 0:02:17]}  O-O {[%clk 0:02:49]} 12. Bxc6 {[%clk 0:02:17]}  bxc6 {[%clk 0:02:50]} 13. O-O {[%clk 0:02:12]}  a5 {[%clk 0:02:50]} 14. c3 {[%clk 0:02:11]}  f6 {[%clk 0:02:49]} 15. Re1 {[%clk 0:02:09]}  d4 {[%clk 0:02:48]} 16. Qxc6 {[%clk 0:02:06]}  fxe5 {[%clk 0:02:44]} 17. Bxe5 {[%clk 0:02:04]}  Kh8 {[%clk 0:02:39]} 18. Qxe6 {[%clk 0:02:00]}  Bh4 {[%clk 0:02:33]} 19. g3 {[%clk 0:01:53]}  Qg5 {[%clk 0:02:28]} 20. Bf4 {[%clk 0:01:48]}  Qh5 {[%clk 0:02:27]} 21. g4 {[%clk 0:01:36]}  Bxf2+ {[%clk 0:02:26]} 22. Kxf2 {[%clk 0:01:34]}  Qh4+ {[%clk 0:02:12]} 23. Kg2 {[%clk 0:01:29]}  Ne3+ {[%clk 0:02:13]} 24. Rxe3 {[%clk 0:01:18]}  Rxf4 {[%clk 0:02:07]} 25. Rg3 {[%clk 0:00:50]}  Raf8 {[%clk 0:02:04]} 26. Qe2 {[%clk 0:00:49]}  Qf6 {[%clk 0:01:54]} 27. g5 {[%clk 0:00:38]}  Qf5 {[%clk 0:01:49]} 28. Kh1 {[%clk 0:00:14]}  Rf1+ {[%clk 0:01:43]} 29. Rg1 {[%clk 0:00:14]}  Qxh3+ {[%clk 0:01:42]} 30. Qh2 {[%clk 0:00:15]}  Rxg1+ {[%clk 0:01:42]} 31. Kxg1 {[%clk 0:00:15]}  Rf1# {[%clk 0:01:42]} 0-1


[Site "https://www.chess.com"]